fUSD/lending_fUSD_20251011
["ID","MTS","AMOUNT","RATE_DAILY","PERIOD"]
[390858204,1760179851199,-429.0,0.00018904,2]
[390858206,1760179851208,-429.0,0.00018904,2]
[390858208,1760179851218,-429.0,0.00018904,2]
[390858210,1760179851227,-429.0,0.00018904,2]
[390858212,1760179851237,-429.0,0.00018904,2]
[390858214,1760179851246,-434.0,0.00018904,2]
[390858216,1760179851254,-434.0,0.00018904,2]
[390858218,1760179851263,-434.0,0.00018904,2]
[390858220,1760179851272,-434.0,0.00018904,2]
[390858222,1760179851281,-434.0,0.00018904,2]
[390858224,1760179851290,-434.0,0.00018904,2]
[390858225,1760179851300,-434.0,0.00018904,2]
[390858227,1760179851310,-434.0,0.00018904,2]
[390858229,1760179851320,-434.0,0.00018904,2]
[390858231,1760179851329,-434.0,0.00018904,2]
[390858233,1760179851337,-434.0,0.00018904,2]
[390858235,1760179851347,-434.0,0.00018904,2]
[390858237,1760179851356,-434.0,0.00018904,2]
[390858239,1760179851366,-434.0,0.00018904,2]
[390858241,1760179851375,-396.0,0.00018904,2]
[390858243,1760179851385,-396.0,0.00018904,2]
[390858245,1760179851395,-396.0,0.00018904,2]
[390858247,1760179851405,-396.0,0.00018904,2]
[390858249,1760179851414,-396.0,0.00018904,2]
[390858251,1760179851423,-396.0,0.00018904,2]
[390858253,1760179851432,-396.0,0.00018904,2]
[390858255,1760179851440,-396.0,0.00018904,2]
[390858257,1760179851449,-396.0,0.00018904,2]
[390858259,1760179851458,-396.0,0.00018904,2]
[390858261,1760179851467,-396.0,0.00018904,2]
[390858263,1760179851476,-396.0,0.00018904,2]
[390858265,1760179851485,-396.0,0.00018904,2]
[390858267,1760179851494,-396.0,0.00018904,2]
[390858269,1760179851503,-429.0,0.00018904,2]
[390858271,1760179851512,-429.0,0.00018904,2]
[390858273,1760179851521,-429.0,0.00018904,2]
[390858274,1760179851530,-429.0,0.00018904,2]
[390858276,1760179851539,-429.0,0.00018904,2]
[390858278,1760179851549,-429.0,0.00018904,2]
[390858280,1760179851557,-429.0,0.00018904,2]
[390858282,1760179851567,-429.0,0.00018904,2]
[390858284,1760179851576,-429.0,0.00018904,2]
[390858286,1760179851585,-429.0,0.00018904,2]
[390858288,1760179851594,-401.0,0.00018904,2]
[390858290,1760179851604,-401.0,0.00018904,2]
[390858292,1760179851612,-401.0,0.00018904,2]
[390858294,1760179851622,-401.0,0.00018904,2]
[390858296,1760179851631,-401.0,0.00018904,2]
[390858298,1760179851639,-401.0,0.00018904,2]
[390858300,1760179851648,-401.0,0.00018904,2]
[390858302,1760179851658,-401.0,0.00018904,2]
[390858304,1760179851667,-401.0,0.00018904,2]
[390858306,1760179851676,-401.0,0.00018904,2]
[390858308,1760179851686,-401.0,0.00018904,2]
[390858310,1760179851695,-401.0,0.00018904,2]
[390858312,1760179851704,-401.0,0.00018904,2]
[390858314,1760179851713,-401.0,0.00018904,2]
[390858316,1760179851722,-1000.0,0.00018935,2]
[390858318,1760179851731,-448.0,0.00018936,2]
[390858320,1760179851740,-500.0,0.00018936,2]
[390858322,1760179851749,-1098.0,0.00018936,2]
[390858324,1760179851758,-225.0,0.00018936,2]
[390858326,1760179851767,-544.0,0.00018936,2]
[390858328,1760179851776,-500.0,0.00018936,2]
[390858330,1760179851785,-528.0,0.00018936,2]
[390858332,1760179851794,-1261.0,0.00018936,2]
[390858334,1760179851804,-1101.04,0.00018936,2]
[390858336,1760179851813,-160.49561229,0.00018973,2]
[390858338,1760179851822,-500.86951014,0.00018973,2]
[390858340,1760179851831,-431.41289556,0.00018973,2]
[390858342,1760179851840,-500.0,0.00018973,2]
[390858344,1760179851849,-500.1745572,0.00018973,2]
[390858346,1760179851858,-591.33236894,0.00018973,2]
[390858348,1760179851867,-500.0,0.00018973,2]
[390858350,1760179851876,-500.0,0.00018973,2]
[390858352,1760179851884,-165.49206283,0.00018973,2]
[390858354,1760179851894,-500.0,0.00018973,2]
[390858356,1760179851904,-500.0,0.00018973,2]
[390858358,1760179851913,-160.24685783,0.00018973,2]
[390858360,1760179851923,-500.0,0.00018973,2]
[390858362,1760179851933,-500.0,0.00018973,2]
[390858364,1760179851942,-500.0,0.00018973,2]
[390858366,1760179851952,-160.21716625,0.00018973,2]
[390858369,1760179851962,-500.2561938,0.00018973,2]
[390858371,1760179851971,-500.0,0.00018973,2]
[390858373,1760179851981,-500.0,0.00018973,2]
[390858375,1760179851990,-500.0,0.00018973,2]
[390858377,1760179851999,-500.0,0.00018973,2]
[390858378,1760179852008,-160.27628069,0.00018973,2]
[390858380,1760179852018,-500.7490396,0.00018973,2]
[390858382,1760179852027,-500.0,0.00018973,2]
[390858384,1760179852035,-500.16276424,0.00018973,2]
[390858386,1760179852044,-500.0,0.00018973,2]
[390858388,1760179852054,-500.19530901,0.00018973,2]
[390858390,1760179852063,-161.44724478,0.00018973,2]
[390858392,1760179852076,-500.3731077,0.00018973,2]
[390858394,1760179852085,-500.0,0.00018973,2]
[390858396,1760179852095,-516.10484469,0.00018973,2]
[390858398,1760179852103,-500.0,0.00018973,2]
[390858400,1760179852112,-217.43162071,0.00018973,2]
[390858402,1760179852121,-500.0,0.00018973,2]
[390858404,1760179852130,-500.0,0.00018973,2]
[390858406,1760179852140,-500.0,0.00018973,2]
[390858408,1760179852152,-500.0,0.00018973,2]
[390858410,1760179852161,-523.47952108,0.00018973,2]
[390858412,1760179852171,-500.0,0.00018973,2]
[390858414,1760179852180,-500.0,0.00018973,2]
[390858416,1760179852189,-324.63825813,0.00018973,2]
[390858418,1760179852199,-500.0,0.00018973,2]
[390858420,1760179852209,-500.0,0.00018973,2]
[390858422,1760179852218,-500.0,0.00018973,2]
[390858424,1760179852228,-500.0,0.00018973,2]
[390858426,1760179852237,-208.00345415,0.00018973,2]
[390858428,1760179852246,-500.0,0.00018973,2]
[390858430,1760179852255,-500.0,0.00018973,2]
[390858432,1760179852264,-500.0,0.00018973,2]
[390858434,1760179852274,-500.0,0.00018973,2]
[390858436,1760179852283,-500.0,0.00018973,2]
[390858438,1760179852292,-157.31671851,0.00018973,2]
[390858440,1760179852301,-500.0,0.00018973,2]
[390858442,1760179852311,-500.0,0.00018973,2]
[390858444,1760179852319,-500.0,0.00018973,2]
[390858446,1760179852328,-500.0,0.00018973,2]
[390858448,1760179852337,-302.91433126,0.00018973,2]
[390858450,1760179852346,-500.0,0.00018973,2]
[390858452,1760179852355,-500.0,0.00018973,2]
[390858454,1760179852364,-204.87023606,0.00018973,2]
[390858456,1760179852373,-500.26290145,0.00018973,2]
[390858458,1760179852382,-500.0,0.00018973,2]
[390858460,1760179852392,-500.0,0.00018973,2]
[390858462,1760179852401,-164.70710526,0.00018973,2]
[390858464,1760179852410,-500.43060712,0.00018973,2]
[390858466,1760179852419,-500.0,0.00018973,2]
[390858468,1760179852429,-300.0,0.00018989,2]
[390858470,1760179852438,-300.0,0.00018989,2]
[390858472,1760179852448,-80000.0,0.0001899,2]
[390858474,1760179852458,-448.0,0.00018991,2]
[390858476,1760179852467,-500.0,0.00018991,2]
[390858478,1760179852476,-1098.0,0.00018991,2]
[390858480,1760179852485,-528.0,0.00018991,2]
[390858482,1760179852495,-1261.0,0.00018991,2]
[390858484,1760179852504,-5000.0,0.00018998,2]
[390858486,1760179852513,-151.0,0.00018998,2]
[390858488,1760179852523,-300.0,0.00018999,2]
[390858490,1760179852532,-305.02559589,0.00018999,2]
[390858492,1760179852541,-871.25699135,0.00019,2]
[390858494,1760179852551,-4494.77847017,0.00019,2]
[390858496,1760179852563,-1364.93137827,0.00019,3]
[390858498,1760179852572,-58000.0,0.00019,5]
[390858499,1760179852582,-500.0,0.00019,2]
[390858500,1760179852592,-2297.79111692,0.00019,2]
[390858501,1760179852601,-552.32439429,0.00019,2]
[390858503,1760179852611,-467170.73184019,0.00019,2]
[390858505,1760179852621,-300.0,0.00019,2]
[390858507,1760179852631,-1000.67217281,0.00019021,2]
[390858509,1760179852640,-448.0,0.00019046,2]
[390858511,1760179852649,-500.0,0.00019046,2]
[390858513,1760179852659,-1098.0,0.00019046,2]
[390858515,1760179852668,-528.0,0.00019046,2]
[390858517,1760179852677,-1261.0,0.00019046,2]
[390858519,1760179852686,-823.0,0.00019053,2]
[390858521,1760179852695,-302.85637029,0.00019099,2]
[390858523,1760179852704,-51319.19110766,0.000191,2]
[390858616,1760179853571,-294.05674955,0.000191,2]
[390858689,1760179854475,-1150.131884,0.000185,2]
[390858690,1760179854488,-500.0,0.00018607,2]
[390858691,1760179854499,-500.0,0.00018662,2]
[390858692,1760179854511,-500.0,0.00018717,2]
[390858693,1760179854522,-500.0,0.00018772,2]
[390858694,1760179854534,-500.0,0.00018826,2]
[390858716,1760179855042,-500.0,0.00018881,2]
[390858717,1760179855055,-1094031.87341288,0.000191,2]
[390858718,1760179855094,-892.70728245,0.000191,2]
[390858719,1760179855125,-67202.93884666,0.000191,2]
[390858745,1760179856528,-224.90620422,0.00014898,2]
[390858746,1760179856539,-500.0,0.00018388,2]
[390858747,1760179856551,-500.0,0.00018443,2]
[390858748,1760179856562,-500.0,0.00018498,2]
[390858749,1760179856572,-321.026231,0.000185,2]
[390858750,1760179856583,-500.0,0.00018552,2]
[390858751,1760179856593,-500.0,0.00018607,2]
[390858752,1760179856603,-500.0,0.00018662,2]
[390858753,1760179856614,-500.0,0.00018717,2]
[390858754,1760179856625,-500.0,0.00018772,2]
[390858755,1760179856636,-500.0,0.00018826,2]
[390858756,1760179856646,-216.50401327,0.00018881,2]
[390858757,1760180101406,1481.00968008,0.00027397,120]
[390858811,1760180415881,165.76081678,3.5e-06,14]
[390858866,1760180494718,-158.37,0.00013506,2]
[390858867,1760180494740,-250.0,0.00013853,2]
[390858868,1760180494760,-195.0,0.00013853,2]
[390858869,1760180494781,-2500.0,0.00014201,2]
[390858870,1760180494804,-535.6056807,0.00014618,2]
[390858871,1760180494827,-500.0,0.00014618,2]
[390858872,1760180494850,-1200.0,0.00014618,2]
[390858873,1760180494871,-300.0,0.00014618,2]
[390858874,1760180494891,-2500.0,0.00014619,2]
[390858875,1760180494911,-2500.0,0.00014619,2]
[390858876,1760180494932,-2500.0,0.00014619,2]
[390858877,1760180494952,-1861.0243193,0.00014857,2]
[390859056,1760180749509,1600.0,0.00025168,120]
[390859225,1760181032268,-2500.0,0.00014881,2]
[390859227,1760181032278,-169.81639763,0.00014899,2]
[390859229,1760181032287,-1200.0,0.00014899,2]
[390859231,1760181032296,-5800.0,0.000149,2]
[390859233,1760181032306,-2500.0,0.00014909,2]
[390859235,1760181032315,-150.0,0.00015067,2]
[390859237,1760181032324,-300.0,0.00015067,2]
[390859239,1760181032333,-300.0,0.00015613,2]
[390859241,1760181032342,-151.0,0.00015614,2]
[390859243,1760181032351,-151.0,0.00015614,2]
[390859245,1760181032360,-151.0,0.00015614,2]
[390859247,1760181032369,-151.0,0.00015614,2]
[390859249,1760181032378,-151.0,0.00015614,2]
[390859251,1760181032387,-151.0,0.00015614,2]
[390859253,1760181032396,-151.0,0.00015614,2]
[390859255,1760181032405,-151.0,0.00015614,2]
[390859257,1760181032414,-151.0,0.00015614,2]
[390859259,1760181032423,-151.0,0.00015614,2]
[390859261,1760181032432,-151.0,0.00015614,2]
[390859263,1760181032441,-151.0,0.00015614,2]
[390859265,1760181032450,-151.0,0.00015614,2]
[390859267,1760181032459,-93.5731242,0.00015614,2]
[390859270,1760181032495,-57.4268758,0.00015614,2]
[390859271,1760181032504,-168.49930623,0.00015614,2]
[390859272,1760181032517,-151.0,0.00015614,2]
[390859273,1760181032849,-151.0,0.00015614,2]
[390859274,1760181032858,-151.0,0.00015614,2]
[390859275,1760181032868,-500.0,0.00015614,2]
[390859276,1760181032877,-1000.0,0.00015622,2]
[390859277,1760181032886,-528.2495228,0.00015623,2]
[390859279,1760181037813,-737.7504772,0.00015623,2]
[390859280,1760181037823,-740.0,0.00015623,2]
[390859281,1760181037832,-3405.0,0.00015623,2]
[390859282,1760181037841,-1366.59952279,0.00015623,2]
[390859284,1760181038033,-681.40047721,0.00015623,2]
[390859285,1760181038043,-1587.0,0.00015623,2]
[390859286,1760181038055,-604.0,0.00015623,2]
[390859287,1760181038066,-1309.0,0.00015623,2]
[390859288,1760181038078,-571.0,0.00015623,2]
[390859289,1760181038088,-816.0,0.00015686,2]
[390859290,1760181038099,-4120.0,0.00015686,2]
[390859291,1760181038109,-622.0,0.00015686,2]
[390859292,1760181038118,-150.0,0.00016,2]
[390859293,1760181038128,-641.96993028,0.00016321,2]
[390859295,1760181038137,-301.3415442,0.00016342,2]
[390859297,1760181038146,-2500.0,0.00016342,2]
[390859298,1760181038156,-151.0,0.00016369,2]
[390859300,1760181038165,-2500.0,0.00016369,2]
[390859302,1760181038174,-300.0,0.00016369,2]
[390859304,1760181038183,-2000.0,0.00016369,2]
[390859306,1760181038192,-195.0,0.00016369,2]
[390859307,1760181038202,-250.0,0.00016369,2]
[390859309,1760181038211,-2500.0,0.00016369,2]
[390859311,1760181038220,-300.0,0.00016369,2]
[390859313,1760181038230,-250.0,0.00016369,2]
[390859315,1760181038239,-195.0,0.00016369,2]
[390859317,1760181038249,-1680.0,0.00016389,2]
[390859319,1760181038258,-200.0,0.00016665,2]
[390859321,1760181038268,-150.0,0.00016697,2]
[390859323,1760181038277,-929.34,0.00016707,2]
[390859324,1760181038286,-407.0,0.00016737,2]
[390859326,1760181038295,-250.0,0.00016738,7]
[390859328,1760181038304,-2751.0,0.00016753,2]
[390859330,1760181038314,-1600.0,0.00016779,2]
[390859332,1760181038324,-150.0,0.00016795,2]
[390859334,1760181038334,-613.34,0.00017,7]
[390859336,1760181038343,-250.0,0.00017,2]
[390859337,1760181038352,-475.23572958,0.0001701,2]
[390859339,1760181038362,-2499.58,0.00017055,2]
[390859341,1760181038371,-161.66668499,0.00017141,2]
[390859343,1760181038381,-613.90193811,0.00017238,2]
[390859345,1760181038390,-151.0,0.00017239,2]
[390859347,1760181038399,-160.0,0.00017239,2]
[390859348,1760181038408,-151.0,0.00017239,2]
[390859350,1760181038417,-300.0,0.00017239,2]
[390859352,1760181038426,-623.58710448,0.00017239,2]
[390859354,1760181038436,-181.08010149,0.00017239,2]
[390859356,1760181038445,-599.60298508,0.00017239,2]
[390859358,1760181038455,-1000.0,0.00017239,2]
[390859360,1760181038464,-1000.0,0.00017239,2]
[390859361,1760181038474,-322.6107,0.00017239,2]
[390859363,1760181038483,-1472.31592576,0.00017239,2]
[390859365,1760181038492,-1000.0,0.00017239,2]
[390859367,1760181038501,-500.0,0.00017239,2]
[390859369,1760181038511,-1000.0,0.00017239,2]
[390859371,1760181038522,-500.0,0.00017239,2]
[390859373,1760181038532,-1000.0,0.00017239,2]
[390859375,1760181038541,-1000.0,0.00017239,2]
[390859376,1760181038550,-1000.0,0.00017239,2]
[390859378,1760181038563,-1000.0,0.00017239,2]
[390859380,1760181038573,-1000.0,0.00017239,2]
[390859382,1760181038583,-1000.0,0.00017239,2]
[390859384,1760181038592,-1000.0,0.00017239,2]
[390859386,1760181038604,-1000.0,0.00017239,2]
[390859388,1760181038614,-2000.0,0.00017239,2]
[390859390,1760181038623,-1175.38983332,0.00017239,2]
[390859392,1760181038632,-239.84119403,0.00017239,2]
[390859393,1760181038640,-500.0,0.00017239,2]
[390859395,1760181038649,-166.66,0.00017692,2]
[390859397,1760181038659,-169.357,0.000179,2]
[390859399,1760181038668,-253.0,0.00017922,2]
[390859401,1760181038677,-10125.55239254,0.00018,2]
[390859403,1760181038687,-2351.0,0.00018028,2]
[390859405,1760181038696,-2569.817,0.00018052,2]
[390859407,1760181038706,-253.0,0.00018115,2]
[390859409,1760181038715,-253.0,0.00018167,2]
[390859411,1760181038725,-253.0,0.00018186,2]
[390859412,1760181038734,-1000.0,0.00018199,2]
[390859414,1760181038744,-1000.0,0.00018199,2]
[390859416,1760181038753,-7275.34728393,0.000182,2]
[390859541,1760181040050,-2850.20510861,0.000182,2]
[390859544,1760181040065,-253.0,0.0001826,2]
[390859546,1760181040077,-166.66,0.00018276,2]
[390859548,1760181040089,-135.11686587,0.00018287,2]
[390859559,1760181040262,-117.88313413,0.00018287,2]
[390859560,1760181040274,-300.0,0.000183,2]
[390859561,1760181040287,-957.0,0.000183,2]
[390859562,1760181040299,-10125.55239254,0.000184,2]
[390859563,1760181040313,-10125.55239254,0.000185,2]
[390859564,1760181040326,-353.57316176,0.000185,2]
[390859565,1760181040338,-207.41166863,0.00018561,2]
[390859566,1760181040350,-334.5472959,0.00018608,2]
[390859567,1760181040362,-248.71531821,0.00018608,2]
[390859568,1760181040374,-1266.0,0.00018623,2]
[390859569,1760181040387,-740.0,0.00018623,2]
[390859570,1760181040399,-3405.0,0.00018623,2]
[390859572,1760181040412,-2048.0,0.00018623,2]
[390859574,1760181040424,-1587.0,0.00018623,2]
[390859576,1760181040436,-604.0,0.00018623,2]
[390859578,1760181040450,-1309.0,0.00018623,2]
[390859580,1760181040462,-571.0,0.00018623,2]
[390859583,1760181040475,-253.0,0.00018625,2]
[390859585,1760181040489,-253.0,0.00018626,2]
[390859587,1760181040502,-253.0,0.00018636,2]
[390859590,1760181040514,-200.0,0.0001865,2]
[390859592,1760181040530,-253.0,0.0001867,2]
[390859594,1760181040542,-816.0,0.00018686,2]
[390859597,1760181040555,-4120.0,0.00018686,2]
[390859599,1760181040568,-622.0,0.00018686,2]
[390859601,1760181040581,-253.0,0.00018694,2]
[390859603,1760181040593,-10125.55239254,0.000187,2]
[390859606,1760181040606,-253.0,0.00018701,2]
[390859608,1760181040618,-253.0,0.00018706,2]
[390859611,1760181040631,-158.6030056,0.00018755,2]
[390859613,1760181040643,-500.0,0.00018773,2]
[390859615,1760181040654,-500.0,0.00018773,2]
[390859617,1760181040666,-500.0,0.00018773,2]
[390859620,1760181040679,-500.0,0.00018773,2]
[390859622,1760181040692,-501.58960617,0.00018773,2]
[390859624,1760181040705,-253.0,0.0001878,2]
[390859627,1760181040718,-473.68,0.0001879,2]
[390859629,1760181040729,-162.54,0.0001879,2]
[390859632,1760181040742,-704.99,0.0001879,2]
[390859634,1760181040754,-704.99,0.0001879,2]
[390859636,1760181040767,-704.99,0.0001879,2]
[390859639,1760181040779,-704.99,0.0001879,2]
[390859641,1760181040792,-68455.91249878,0.000188,2]
[390860031,1760181044333,-704.99,0.0001879,2]
[390860033,1760181044344,-64895.95099573,0.000188,2]
[390860035,1760181044355,-25186.3396482,0.000188,2]
[390860043,1760181044419,-1919.7,0.000188,2]
[390860049,1760181044460,-89542.09685729,0.000188,2]
[390860051,1760181044470,-161.66668499,0.00018855,2]
[390860053,1760181044479,-166.66,0.0001886,2]
[390860055,1760181044488,-1600.0,0.00018876,2]
[390860057,1760181044497,-151.0,0.00018878,2]
[390860059,1760181044506,-253.0,0.00018889,2]
[390860061,1760181044517,-500.0,0.0001889,2]
[390860063,1760181044529,-500.0,0.0001889,2]
[390860065,1760181044538,-10125.55239254,0.000189,2]
[390860067,1760181044547,-153.0,0.00018904,2]
[390860069,1760181044557,-153.0,0.00018904,2]
[390860071,1760181044569,-153.0,0.00018904,2]
[390860073,1760181044579,-153.0,0.00018904,2]
[390860075,1760181044587,-300.0,0.00018968,2]
[390860077,1760181044598,-500.0,0.00018991,2]
[390860079,1760181044608,-500.0,0.00018991,2]
[390860080,1760181044618,-150.0,0.00018991,2]
[390860083,1760181044627,-500.0,0.00018991,2]
[390860085,1760181044636,-150.0,0.00018991,2]
[390860087,1760181044646,-150.0,0.00018991,2]
[390860089,1760181044655,-150.0,0.00018991,2]
[390860091,1760181044664,-150.0,0.00018991,2]
[390860093,1760181044674,-500.0,0.00018991,2]
[390860095,1760181044683,-150.0,0.00018991,2]
[390860097,1760181044692,-549.0,0.00018991,2]
[390860098,1760181044702,-500.0,0.00018991,2]
[390860100,1760181044711,-630.0,0.00018991,2]
[390860103,1760181044720,-1000.0,0.00019,2]
[390860105,1760181044730,-300.0,0.00019,2]
[390860106,1760181044739,-5000.0,0.00019,2]
[390860109,1760181044748,-253.0,0.00019014,2]
[390860110,1760181044758,-253.0,0.00019017,2]
[390860112,1760181044767,-500.0,0.00019046,2]
[390860114,1760181044776,-500.0,0.00019046,2]
[390860116,1760181044786,-200.0,0.00019046,2]
[390860118,1760181044795,-500.0,0.00019046,2]
[390860120,1760181044804,-150.0,0.00019046,2]
[390860123,1760181044814,-150.0,0.00019046,2]
[390860124,1760181044823,-150.0,0.00019046,2]
[390860127,1760181044833,-500.0,0.00019046,2]
[390860128,1760181044843,-549.0,0.00019046,2]
[390860131,1760181044852,-500.0,0.00019046,2]
[390860133,1760181044861,-630.0,0.00019046,2]
[390860135,1760181044870,-7811.9387537,0.00019066,2]
[390860137,1760181044879,-500.10331404,0.00019073,2]
[390860138,1760181044888,-500.0,0.00019073,2]
[390860140,1760181044898,-500.0,0.00019073,2]
[390860142,1760181044907,-500.0,0.00019073,2]
[390860144,1760181044916,-500.0,0.00019073,2]
[390860146,1760181044925,-639.03396425,0.00019073,2]
[390860148,1760181044934,-500.0,0.00019073,2]
[390860150,1760181044944,-494.02992228,0.00019073,2]
[390860152,1760181044953,-500.0,0.00019073,2]
[390860154,1760181044963,-500.0,0.00019073,2]
[390860156,1760181044972,-501.17885123,0.00019073,2]
[390860158,1760181044981,-500.0,0.00019073,2]
[390860160,1760181044990,-152.90941915,0.00019081,2]
[390860162,1760181044999,-1000.0,0.00019099,2]
[390860164,1760181045008,-923.0,0.000191,2]
[390860166,1760181045018,-71665.18341622,0.000191,2]
[390860168,1760181045027,-42460.14767,0.000191,2]
[390860171,1760181045039,-1915.05434017,0.000191,2]
[390860173,1760181045050,-2375.43320778,0.000191,2]
[390860175,1760181045060,-344.23679222,0.000191,2]
[390860178,1760181045079,-34051.54719151,0.000191,2]
[390860301,1760181046251,-901.0,0.0001602,2]
[390860303,1760181046260,-222.9,0.0001902,2]
[390862889,1760181079669,425.19528361,0.00027397,120]
[390863270,1760181914456,1841.54295599,0.000121,30]
[390863282,1760181954063,524.27105493,0.0001075,30]
[390863398,1760182111309,256.48737807,0.00014,30]
[390863495,1760182238592,-4060.01143357,0.0001439,2]
[390863497,1760182238616,-2500.0,0.00014645,2]
[390863499,1760182238639,-158.60300555,0.00014899,2]
[390863501,1760182238661,-300.0,0.00014899,2]
[390863503,1760182238683,-1200.0,0.00014899,2]
[390863506,1760182238707,-158.60300555,0.00014899,2]
[390863508,1760182238732,-58.41696007,0.00014899,2]
[390863513,1760182238831,-100.18604548,0.00014899,2]
[390863515,1760182238854,-158.60300555,0.00014899,2]
[390863517,1760182238879,-158.60300555,0.000149,2]
[390863519,1760182238903,-158.60300555,0.000149,2]
[390863521,1760182238925,-158.60300555,0.000149,2]
[390863523,1760182238946,-158.60300555,0.000149,2]
[390863525,1760182238957,-399.60304083,0.000149,2]
[390863527,1760182238968,-293.49610566,0.000149,2]
[390863530,1760182238981,-54.71591336,0.000149,2]
[390863531,1760182238992,-5151.65636728,0.000149,2]
[390863533,1760182239002,-158.60300555,0.000149,2]
[390863536,1760182239013,-2500.0,0.00014936,2]
[390863538,1760182239024,-150.0,0.00014972,2]
[390863540,1760182239033,-500.0,0.00014973,2]
[390863542,1760182239047,-500.0,0.00014973,2]
[390863544,1760182239057,-500.0,0.00014973,2]
[390863546,1760182239067,-500.0,0.00014973,2]
[390863548,1760182239078,-500.0,0.00014973,2]
[390863550,1760182239088,-500.0,0.00014973,2]
[390863552,1760182239098,-500.0,0.00014973,2]
[390863554,1760182239108,-500.0,0.00014973,2]
[390863556,1760182239117,-500.0,0.00014973,2]
[390863558,1760182239127,-500.0,0.00014973,2]
[390863560,1760182239137,-429.73135668,0.00014997,2]
[390863562,1760182239147,-656553.92012826,0.00014998,2]
[390863564,1760182239157,-11624.01,0.00014999,2]
[390863566,1760182239167,-1461.10024344,0.00014999,2]
[390863568,1760182239176,-155.64199458,0.00014999,5]
[390863570,1760182239186,-666.0,0.00014999,2]
[390863572,1760182239196,-666.0,0.00014999,2]
[390863574,1760182239205,-9065324.38770173,0.00015,2]
[390863580,1760182239252,-3530.8,0.00015,2]
[390863593,1760182239374,-3859.83934015,0.00015,2]
[390863680,1760182240187,-366.49410161,0.00015,2]
[390863682,1760182240199,-808.9545865,0.00015,2]
[390863693,1760182240292,-1225.6464,0.00015,2]
[390863696,1760182240347,-2412152.37615045,0.00015,2]
[390863697,1760182240357,-2022.90396124,0.00015,2]
[390863698,1760182240367,-7874.71377308,0.00015,2]
[390863699,1760182240377,-4727633.53731166,0.00015,2]
[390863700,1760182240390,-2502.4311,0.00015,2]
[390863701,1760182240412,-2988.58933104,0.00015,2]
[390863702,1760182240424,-6420.61914504,0.00015,2]
[390863704,1760182240438,-1123.0,0.00015,2]
[390863973,1760182243094,-22384.00000159,0.00015,2]
[390863980,1760182243149,-1814.95127278,0.00015,2]
[390863993,1760182243256,-538.699999,0.00015,2]
[390863999,1760182243310,-6414.58974633,0.00015,2]
[390864007,1760182243365,-296.42549963,0.00015,2]
[390864009,1760182243376,-293.32125936,0.00015,2]
[390864011,1760182243387,-612.24069804,0.00015,2]
[390864013,1760182243399,-486.76310491,0.00015,2]
[390864016,1760182243410,-327.54242001,0.00015,2]
[390864018,1760182243421,-885.348,0.00015,2]
[390864034,1760182243547,-1257.3960854,0.00015,2]
[390864285,1760182246109,-1036.47381554,0.000149,2]
[390864287,1760182246119,-14732.02969285,0.00015,2]
[390864312,1760182246366,-1126.36345547,0.00015,2]
[390864314,1760182246377,-327977.45647876,0.00015,2]
[390864326,1760182246482,-2228.6,0.00015,2]